Workbook

Sheet Feuil1
A2: Créer une classe de cotisation en fonction de la qualité "Sout"de l'adhérent ou de la surface de sa forêt:
C3: Transposer cette fonction dans : txt_Classe_tarif du formulaire frmsaisie
C5: Principe: si cbo_Fonction= "Sout" alors: txt_Classe_tarif= "sout"
C6: Si cbo_Fonction = "", on détermine la classe suivant la surface
A9: cbo_Fonction | B9: txtSurf_foret
A10: sout | B10: 50000
C11: txtClasse_Tarif
C12: =IF(cbo_Fonction="Sout","Sout",IF(txtSurf_Foret<=50000,5,IF(txtSurf_Foret<=100000,10,IF(txtSurf_Foret<=200000,20,IF(txtSurf_Foret<=500000,50,IF(txtSurf_Foret<=750000,75,IF(txtSurf_Foret<=1000000,100,IF(txtSurf_Foret<=1500000,150,IF(txtSurf_Foret<=2000000,200,IF(txtSurf_Foret<=3000000,300,IF(txtSurf_Foret<=4000000,400,IF(txtSurf_Foret<=5000000,500,"500+")))))))))))) -> Sout
B13: txtClasse_tarif | C13: =SI(cbo_Fonction="Sout";"Sout";SI(txtSurf_Foret<=50000;5;SI(txtSurf_Foret<=100000;10;SI(txtSurf_Foret<=200000;20;SI(txtSurf_Foret<=500000;50;SI(txtSurf_Foret<=750000;75;SI(txtSurf_Foret<=1000000;100;SI(txtSurf_Foret<=1500000;150;SI(txtSurf_Foret<=2000000;200;SI(txtSurf_Foret<=3000000;300;SI(txtSurf_Foret<=4000000;400;SI(txtSurf_Foret<=5000000;500;"500+"))))))))))))
C14: Transposer ces recherches (ici qui ne fonctionnent pas mais ici mais si en . . . . . | I14: Adherents'!$V$2
C15: Différentes classes: sout,5,10, 20, 50, 75,10, ….Sout
A16: txtClasse_tarif
A17: Sout | B17: txt_Cot_soutien | C17: =RECHERCHEV(txtClasse_tarif;'Listes déroulantes'!$O$5:'Listes déroulantes'!$T$17;2)
B18: txt_Cot_GSB | C18: =RECHERCHEV(txtClasse_tarif;'Listes déroulantes'!$O$5:'Listes déroulantes'!$T$17;3)
B19: txt_Cot_UFP38 | C19: =RECHERCHEV(txtClasse_tarif;'Listes déroulantes'!$O$5:'Listes déroulantes'!$T$17;4)
B20: txt_Cot_Revue | C20: =RECHERCHEV(txtClasse_tarif;'Listes déroulantes'!$O$5:'Listes déroulantes'!$T$17;5)
B21: txt_Cot_RC | C21: =RECHERCHEV(txtClasse_tarif;'Listes déroulantes'!$O$5:'Listes déroulantes'!$T$17;6)
B22: txtTot_Cot | C22: =txt_Soutien…...+....txt_Cot_RC
B23: txtRegle
B24: txtEcart | C24: txtTot_Cot-txtRegle
A26: Résultat: | B26: si: cbo_fonction= "Sout"…...txtClasse_taris= Sout
B27: si: cbo_fonction= ""……-si txtSurf_foret: 5 00 00:txtClasse_taris=5

Sheet parametres
A1: surface forêt | B1: tarif
A2: 0 | B2: 5 | D2: =VLOOKUP(E2,A:B,2) -> 10 | E2: 50,001
A3: 50,001 | B3: 10 | C3: =A3+2 -> 50,003
A4: 100,001 | B4: 20 | C4: =A4+2 -> 100,003
A5: 200,001 | B5: 50 | C5: =A5+2 -> 200,003
A6: 500,001 | B6: 75 | C6: =A6+2 -> 500,003
A7: 750,001 | B7: 100 | C7: =A7+2 -> 750,003
A8: 1,000,001 | B8: 150 | C8: =A8+2 -> 1,000,003
A9: 1,500,001 | B9: 200 | C9: =A9+2 -> 1,500,003
A10: 2,000,001 | B10: 300 | C10: =A10+2 -> 2,000,003
A11: 3,000,001 | B11: 400 | C11: =A11+2 -> 3,000,003
A12: 4,000,001 | B12: 500 | C12: =A12+2 -> 4,000,003
A13: 5,000,001 | C13: =A13+2 -> 5,000,003
B14: 500+

Sheet BDD en cours
A1: id | B1: UFP38 | C1: Année | D1: Fonction | E1: Statut | F1: Denomination | G1: Civilité | H1: Suivi | I1: Nom | J1: Prénom | K1: Code Adherent | L1: Vérifier si Doublon | M1: N° de la voie | N1: Adresse | O1: Localisation | P1: Code_Postal | Q1: Villes | R1: Departements | S1: INSEE | T1: Surface forêt | U1: Classe_tarif | V1: Cot_soutien | W1: Cot_GSB | X1: Cot_UFP38 | Y1: Cot_Revue | Z1: Cot_RC | AA1: Tot_Cot | AB1: Règlement | AC1: Ecart | AD1: Date Règlement | AE1: Tel 1 | AF1: Tel 2 | AG1: Mail 1 | AH1: Mail 2 | AI1: PEFC | AJ1: N° N-1 | AK1: Commentaires | AL1: N° id adresse | AM1: N° de la voie2
A2: 1 | B2: 40427 | C2: 2020 | D2: sout | G2: Mr | H2: Chang adr | I2: AGUETTAZ | J2: Etienne | K2: AGEt38314 | M2: 35 | N2: rue du docteurCharvet | O2: Les Vincents | P2: 38530 | Q2: PONTCHARRA | R2: ISERE | S2: 38314 | T2: 0/005 55 00 | U2: =IF(LOWER(Donnees12[[#This Row],[Fonction]])="sout","sout","") -> sout | V2: 0.00 | W2: 19.00 | X2: 8.00 | Y2: 6.00 | Z2: 2.00 | AA2: 35.00 | AB2: 35.00 | AC2: 0.00 | AD2: 43832 | AE2: 04 76 97 75 57 | AF2: 06 59 18 26 06
A3: testid | C3: 2020 | E3: SCI | G3: Mme | I3: AIME | J3: Michèle | K3: AIMi38188 | M3: 167 | N3: chemin des Guillets La Côte | P3: 38320 | Q3: HERBEYS | R3: ISERE | S3: 38188 | T3: 0/001 82 00 | U3: =IF(LOWER(Donnees12[[#This Row],[Fonction]])="sout","sout","") ->  | V3: 0.00 | W3: 12.00 | X3: 9.00 | Y3: 6.00 | Z3: 1.00 | AA3: 28.00 | AB3: 28.00 | AC3: 0.00 | AD3: 43833 | AE3: 04 76 89 01 50 | AF3: 06 73 90 33 12 | AG3: m_aime@orange.fr | AM3: 167
A4: 3 | B4: 3 | C4: 2021 | D4: Bur | E4: SCI | F4: Le Mont | G4: Mr | H4: Nouveau | I4: Ferrier | J4: Auguste | K4: FeAu504 | L4: + | M4: 16 | N4: Rue de la chapelle | O4: Les Vincents | P4: 38570 | Q4: Theys | R4: Isère | S4: 38504 | T4: 0/001 82 00 | U4: =IF(LOWER(Donnees12[[#This Row],[Fonction]])="sout","sout","") ->  | V4: 20 | W4: 10 | X4: 5 | Y4: 6 | Z4: 6 | AA4: 47 | AB4: 48 | AC4: 1 | AD4: 29/01/2021 | AE4: 0476717444 | AF4: 0608334874 | AG4: fergut@laposte.net | AH4: fergut@free.fr | AI4: 111 11 11 | AJ4: feau38181 | AK4: Terniné
A5: 4 | B5: 4 | C5: 2020 | D5: CA | E5: Indi | F5: Le Mont | G5: Mr | H5: Nouveau | I5: Ferrier | J5: Auguste | K5: feau38504 | L5: + | M5: 16 | N5: rue de la Chapelle | O5: Les Vincents | P5: 38570 | Q5: Goncelin | R5: isère | S5: 38181 | T5: 0/001 82 00 | U5: =IF(LOWER(Donnees12[[#This Row],[Fonction]])="sout","sout","") ->  | V5: 20 | W5: 21 | X5: 22 | Y5: 23 | Z5: 24 | AA5: 25 | AB5: 26 | AC5: 27 | AD5: 28/01/2021 | AE5: 0476717444 | AF5: 0608334874 | AG5: fergut@laposte.nt | AH5: fergut@free.fr | AI5: 111 11 11 | AJ5: f ert38000 | AK5: la fin
U6: =IF(LOWER(Donnees12[[#This Row],[Fonction]])="sout","sout","") -> 
U7: =IF(LOWER(Donnees12[[#This Row],[Fonction]])="sout","sout","") -> 
U8: =IF(LOWER(Donnees12[[#This Row],[Fonction]])="sout","sout","") -> 
U9: =IF(LOWER(Donnees12[[#This Row],[Fonction]])="sout","sout","") -> 
U10: =IF(LOWER(Donnees12[[#This Row],[Fonction]])="sout","sout","") -> 
U11: =IF(LOWER(Donnees12[[#This Row],[Fonction]])="sout","sout","") -> 
U12: =IF(LOWER(Donnees12[[#This Row],[Fonction]])="sout","sout","") -> 
U13: =IF(LOWER(Donnees12[[#This Row],[Fonction]])="sout","sout","") -> 
U14: =IF(LOWER(Donnees12[[#This Row],[Fonction]])="sout","sout","") -> 
U15: =IF(LOWER(Donnees12[[#This Row],[Fonction]])="sout","sout","") -> 
U16: =IF(LOWER(Donnees12[[#This Row],[Fonction]])="sout","sout","") -> 
U17: =IF(LOWER(Donnees12[[#This Row],[Fonction]])="sout","sout","") -> 

Sheet Base de donnees
A1: id | B1: UFP38 | C1: Année | D1: Fonction | E1: Statut | F1: Denomination | G1: Civilité | H1: Suivi | I1: Nom | J1: Prénom | K1: Code Adherent | L1: Vérifier si Doublon | M1: N° de la voie | N1: Adresse | O1: Localisation | P1: Code_Postal | Q1: Villes² | R1: Departements | S1: INSEE | T1: Surface forêt | U1: Classe_tarif | V1: Cot_soutien | W1: Cot_GSB | X1: Cot_UFP38 | Y1: Cot_Revue | Z1: Cot_RC | AA1: Tot_Cot | AB1: Règlement | AC1: Ecart | AD1: Date Règlement | AE1: Tel 1 | AF1: Tel 2 | AG1: Mail 1 | AH1: Mail 2 | AI1: PEFC | AJ1: N° N-1 | AK1: Commentaires | AL1: N° id adresse | AM1: N° de la voie2
A2: 1 | B2: 40427 | C2: 2020 | D2: Adh | G2: Mr | H2: Chang adr | I2: AGUETTAZ | J2: Etienne | K2: AGEt38314 | M2: 35 | N2: rue du docteurCharvet | O2: Les Vincents | P2: 38530 | Q2: PONTCHARRA | R2: ISERE | S2: 38314 | T2: 0/005 55 00 | U2: 10 | V2: 0.00 | W2: 19.00 | X2: 8.00 | Y2: 6.00 | Z2: 2.00 | AA2: 35.00 | AB2: 35.00 | AC2: 0.00 | AD2: 43832 | AE2: 04 76 97 75 57 | AF2: 06 59 18 26 06
A3: 2 | B3: 17726 | C3: 2020 | D3: Adh | G3: Mme | I3: AIME | J3: Michèle | K3: AIMi38188 | M3: 167 | N3: chemin des Guillets La Côte | P3: 38320 | Q3: HERBEYS | R3: ISERE | S3: 38188 | T3: 0/001 82 00 | U3: 5 | V3: 0.00 | W3: 12.00 | X3: 9.00 | Y3: 6.00 | Z3: 1.00 | AA3: 28.00 | AB3: 28.00 | AC3: 0.00 | AD3: 43833 | AE3: 04 76 89 01 50 | AF3: 06 73 90 33 12 | AG3: m_aime@orange.fr | AM3: 167
A4: 3 | B4: 3 | C4: 2021 | D4: Bur | E4: SCI | F4: Le Mont | G4: Mr | H4: Nouveau | I4: Ferrier | J4: Auguste | K4: FeAu504 | L4: + | M4: 16 | N4: Rue de la chapelle | O4: Les Vincents | P4: 38570 | Q4: Theys | R4: Isère | S4: 38504 | T4: 0/001 82 00 | U4: 38570 | V4: 20 | W4: 10 | X4: 5 | Y4: 6 | Z4: 6 | AA4: 47 | AB4: 48 | AC4: 1 | AD4: 29/01/2021 | AE4: 0476717444 | AF4: 0608334874 | AG4: fergut@laposte.net | AH4: fergut@free.fr | AI4: 111 11 11 | AJ4: feau38181 | AK4: Terniné
A5: 4 | B5: 4 | C5: 2020 | D5: CA | E5: Indi | F5: Le Mont | G5: Mr | H5: Nouveau | I5: Ferrier | J5: Auguste | K5: feau38504 | L5: + | M5: 16 | N5: rue de la Chapelle | O5: Les Vincents | P5: 38570 | Q5: Goncelin | R5: isère | S5: 38181 | T5: 0/001 82 00 | U5: 5 | V5: 20 | W5: 21 | X5: 22 | Y5: 23 | Z5: 24 | AA5: 25 | AB5: 26 | AC5: 27 | AD5: 28/01/2021 | AE5: 0476717444 | AF5: 0608334874 | AG5: fergut@laposte.nt | AH5: fergut@free.fr | AI5: 111 11 11 | AJ5: f ert38000 | AK5: la fin
A6: 401 | B6: 401 | C6: 2021 | D6: Adh | E6: Indi
A7: 401 | B7: 401 | C7: 2021 | D7: Adh | E7: Indi
A8: 401 | B8: 401 | C8: 2021 | D8: Adh | E8: Indi | I8: ferrier | J8: auguste | L8: 1 | M8: 2 | N8: 3
A9: 401 | B9: 401 | C9: 2021 | D9: Adh | E9: Indi | I9: gut | J9: gugut | S9: 38504
A10: 401 | B10: 401 | C10: 2021 | D10: Adh | E10: Indi | I10: aug | J10: gu | S10: 38504
A11: 401 | B11: 401 | C11: 2021 | D11: Adh | E11: Indi | F11: le mont 31_01_21 | G11: Mme | H11: Chang adr | I11: vxvx,x | J11: xxx& | L11: + | M11: 16 | O11: LES VINCENTS | P11: 38570 | Q11: THEYS | R11: 38 | S11: 38504
A12: 401 | B12: 401 | C12: 2021 | D12: Adh | E12: Indi | F12: s q | G12: Mme | H12: Chang adr | I12: AQAQ | J12: vv | K12: Avv | L12: + | M12: ca | N12: caa | O12: caca | P12: acaa | Q12: cacca | R12: caca | S12: caca | T12: acac | U12: cac | V12: accaz | W12: cac | X12: aca | Y12: ac | Z12: acc | AA12: a | AB12: a | AC12: a | AD12: a | AE12: a | AF12: a | AG12: a | AH12: a | AI12: a | AJ12: a | AK12: a
T19: =SUM(T2:T18) -> 0/011 01 00

Sheet Donnees foret
A1: Id | B1: Code adherent | C1: Nom | D1: Prénom | E1: Villes | F1: Code_Postal | G1: Commune | H1: Departements | I1: INSEE | J1: Section/parcelle | K1: N° de la parcelle | L1: Lieu-dit/ Adresse parcelle | M1: Contenance parcelle m² | N1: Classement PEFC de la parcelle | O1: N° id adresse | P1: kAdh
A2: 1 | B2: FEAu38181 | C2: =INDEX( Donnees[[#This Row],[Nom]],9) ->  | D2: =INDEX( Donnees[[#This Row],[Nom]],10) ->  | E2: =INDEX( Donnees[[#This Row],[Nom]],11) ->  | F2: 38660 | G2: LE TOUVET | H2: =INDEX(Tab_Villes[],MATCH(I2,Tab_Villes[INSEE],0),MATCH(H$1,Tab_Villes[#Headers],0)) -> ISERE | I2: =INDEX(Tab_Villes[],MATCH(1,(Tab_Villes[Code_Postal]=F2)*(Tab_Villes[Villes]=G2),0),4) -> 38511 | J2: AE | K2: 1709 | L2: Routes et recourbes | M2: 0/005 55 55 | N2: oui | O2: =MATCH(1,(Tab_Villes[Code_Postal]=F2)*(Tab_Villes[Villes]=G2),0) -> 15151 | P2: =MATCH(Donnees_PF[[#This Row],[Code adherent]],adherents[Code Adherent],0) -> 
A3: 2 | B3: FEAu38181 | C3: =INDEX(adherents[],Donnees_PF[[#This Row],[kAdh]],9) ->  | D3: =INDEX(adherents[],Donnees_PF[[#This Row],[kAdh]],10) ->  | E3: =INDEX(adherents[],Donnees_PF[[#This Row],[kAdh]],17) ->  | F3: 38570 | G3: GONCELIN | H3: =INDEX(Tab_Villes[],MATCH(I3,Tab_Villes[INSEE],0),MATCH(H$1,Tab_Villes[#Headers],0)) -> ISERE | I3: =INDEX(Tab_Villes[],MATCH(1,(Tab_Villes[Code_Postal]=F3)*(Tab_Villes[Villes]=G3),0),4) -> 38181 | J3: A | K3: 1600 | L3: Le Mont | M3: 0/015 55 66 | N3: oui | O3: =MATCH(1,(Tab_Villes[Code_Postal]=F3)*(Tab_Villes[Villes]=G3),0) -> 15103 | P3: =MATCH(Donnees_PF[[#This Row],[Code adherent]],adherents[Code Adherent],0) -> 
A4: 3 | B4: FEAu38181 | C4: =INDEX(adherents[],Donnees_PF[[#This Row],[kAdh]],9) ->  | D4: =INDEX(adherents[],Donnees_PF[[#This Row],[kAdh]],10) ->  | E4: =INDEX(adherents[],Donnees_PF[[#This Row],[kAdh]],17) ->  | F4: 38570 | G4: THEYS | H4: =INDEX(Tab_Villes[],MATCH(I4,Tab_Villes[INSEE],0),MATCH(H$1,Tab_Villes[#Headers],0)) -> ISERE | I4: =INDEX(Tab_Villes[],MATCH(1,(Tab_Villes[Code_Postal]=F4)*(Tab_Villes[Villes]=G4),0),4) -> 38504 | J4: B | K4: 1501 | L4: Gerbas | M4: 0/000 45 98 | O4: =MATCH(1,(Tab_Villes[Code_Postal]=F4)*(Tab_Villes[Villes]=G4),0) -> 15109 | P4: =MATCH(Donnees_PF[[#This Row],[Code adherent]],adherents[Code Adherent],0) -> 
A5: 4 | B5: FEAu38181 | C5: =INDEX(adherents[],Donnees_PF[[#This Row],[kAdh]],9) ->  | D5: =INDEX(adherents[],Donnees_PF[[#This Row],[kAdh]],10) ->  | E5: =INDEX(adherents[],Donnees_PF[[#This Row],[kAdh]],17) ->  | F5: 38570 | G5: TENCIN | H5: =INDEX(Tab_Villes[],MATCH(I5,Tab_Villes[INSEE],0),MATCH(H$1,Tab_Villes[#Headers],0)) -> ISERE | I5: =INDEX(Tab_Villes[],MATCH(1,(Tab_Villes[Code_Postal]=F5)*(Tab_Villes[Villes]=G5),0),4) -> 38501 | O5: =MATCH(1,(Tab_Villes[Code_Postal]=F5)*(Tab_Villes[Villes]=G5),0) -> 15108 | P5: =MATCH(Donnees_PF[[#This Row],[Code adherent]],adherents[Code Adherent],0) -> 

Sheet Tableau de bord

Sheet Codes_Champs
B1: Caption | C1: Name | D1: txt-cbo-
B2: Titre | C2: Nom | D2: Variable
B3: Titre | D3: Saisie
A4: Variables Saisie
A5: Id | B5: Id | C5: lbl_Id | D5: txtId | E5: 1 | F5: Id | G5: Id | H5: lbl_Id_PF | I5: txtId_PF | J5: 1
A6: Année | B6: Année | C6: lbl_Annee | D6: cboAnnee | E6: 2
A7: Fonction | B7: Fonction | C7: lbl_Fonction | D7: cboFonction | E7: 3
A8: Statut | B8: Statut | C8: lbl_Statut | D8: cboStatut | E8: 4
A9: Dénomination | B9: Dénomination | C9: lbl_Denomination | D9: txtDenomination | E9: 5
A10: Civilités | B10: Civilité | C10: lbl_Civilite | D10: cboCivilite | E10: 6
A11: Suivi | B11: Suivi | C11: lbl_Suivi | D11: cboSuivi | E11: 7
A12: Nom | B12: Nom | C12: lbl_Nom | D12: txtNom | E12: 8 | F12: Nom | G12: Nom | H12: lbl_Nom | I12: txtNom | J12: 2
A13: Prénom | B13: Prénom | C13: lbl_Prénom | D13: txtPrénom | E13: 9 | F13: Prénom | G13: Prénom | H13: lbl_Prénom | I13: txtPrénom | J13: 3
A14: Code adhérent | B14: Code | C14: lbl_Code | D14: txtCode | E14: 10 | F14: Code adhérent | G14: Code | H14: lbl_Code | I14: txtCode
A15: Doublon | B15: Doublon | C15: lbl_Doublons | D15: txtDoublons | E15: 11
A16: N° voie | B16: N° voie | C16: lbl_Num_voie | D16: txtNum_voie | E16: 12
A17: Adresse | B17: Adresse | C17: lbl_Adresse | D17: txtAdresse | E17: 13
A18: Localisation | B18: Localisation | C18: lbl_Localisation | D18: txtLocalisation | E18: 14
A19: Code postal | B19: Code postal | C19: lbl_Code_postal | D19: txtCode_postal | E19: 15 | F19: Code postal | G19: Code postal | H19: lbl_Code_postal | I19: txtCode_postal | J19: 6
A20: Ville | B20: Ville | C20: lbl_Ville | D20: txtVille | E20: 16 | F20: Ville | G20: Ville | H20: lbl_Ville | I20: txtVille | J20: 5
A21: Département | B21: Département | C21: lbl_Departement | D21: txtDepartement | E21: 17 | F21: Département | G21: Département_PF | H21: lbl_Depar_PF | I21: txtDepar_PF | J21: 8
A22: INSEE | B22: INSEE | C22: lbl_INSEE | D22: txtINSEE | E22: 18 | F22: INSEE PF | G22: INSEE | H22: lbl_INSEE_PF | I22: txtINSEE_PF | J22: 9
A23: Forêt m² | B23: Forêt m² | C23: lbl_Surf_foret | D23: txtSurf_foret | E23: 19 | F23: Commune | G23: Commune | H23: lbl_Commune | I23: txtCommune | J23: 7
A24: Classe tarif | B24: Classe tarif | C24: lbl_Classe_tarif | D24: txtClasse_tarif | E24: 20
A25: Cot soutien | B25: Cot soutien | C25: lbl_Cot_soutien | D25: txtCot_soutien | E25: 21
A26: Cot GSB | B26: Cot GSB | C26: lbl_Cot_GSB | D26: txtCot_GSB | E26: 22
A27: Cot UFP38 | B27: Cot UFP38 | C27: lbl_Cot_UFP38 | D27: txtCot_UFP38 | E27: 23
A28: COT Revue | B28: COT Revue | C28: lbl_Cot_Revue | D28: txtCot_Revue | E28: 24
A29: Cot RC | B29: Cot RC | C29: lbl_Cot_RC | D29: txtCot_RC | E29: 25
A30: Tot Cot | B30: Tot Cot | C30: lbl_Tot_cot | D30: txtTot_cot | E30: 26
A31: Règlement | B31: Règlement | C31: lbl_Regle | D31: txtRegle | E31: 27
A32: Ecart | B32: Ecart | C32: lbl_Ecart | D32: txtEcart | E32: 28
A33: Date règle | B33: Date règle | C33: lbl_Date_regle | D33: txtDate_regle | E33: 29
A34: Fixe | B34: Tel Fixe | C34: lbl_Fixe | D34: txtFixe | E34: 30
A35: Mobile | B35: Tel Mobile | C35: lbl_Mobile | D35: txtMobile | E35: 31
A36: Mail | B36: Mail | C36: lbl_Mail | D36: txtMail | E36: 32
A37: Mail2 | B37: Mail2 | C37: lbl_Mail2 | D37: txtMail2 | E37: 33
A38: Ref PEFC | B38: Ref PEFC | C38: lbl_Ref_PEFC | D38: txtRef_PEFC | E38: 34
A39: N° n-1 | B39: N° n-1 | C39: lbl_Num_prece | D39: txtNum_prece | E39: 35
A40: Commentaire | B40: Commentaire | C40: lbl_Comment | D40: txtComment | E40: 36
A41: Section parcelle | F41: Section parcelle | G41: Section_PF | H41: lbl_Section_PF | I41: txtSection_PF
A42: N° parcelle | F42: N° parcelle | G42: N° parcelle PF | H42: lbl_Num_PF | I42: txtNum_PF
A43: Liei dit parcelle | F43: Lieu dit parcelle | G43: Lieu dit PF | H43: lbl_lieu_PF | I43: txtlieu_PF
A44: Surface parcelle | F44: Surface parcelle | G44: Surface PF | H44: lbl_Surf_PF | I44: txtSurf_PF
A45: PEFC parcelle | F45: PEFC parcelle | G45: PEFC PF | H45: lbl_PEFC_PF | I45: cboPEFC_PF
A47: btn | B47: Source | C47: Source_PF
A48: btn | B48: Fermer | C48: Fermer_PF
A49: btn | B49: Efface | C49: Efface_PF
A50: btn | B50: Ajout | C50: Ajout_PF
A51: frm | B51: Saisie
A52: frm | B52: Saisie_PF | C52: Ajout_PF
B53: Feuille= Donnees Nom= Donnees
B54: feuille = Donnes foret nom: donnees_PF

Sheet Listes déroulantes
B1: Civilités | E1: Fonction | H1: Statuts | K1: Année en cours | M1: 1
B2: Nom | C2: Civilites | E2: Nom | F2: Fonction | H2: Nom | I2: Statuts | K2: Nom | L2: Annee | M2: 2 | N2: N | O2: O | P2: P | Q2: Q | R2: R | S2: S | T2: T | U2: U
B3: id_type | C3: Civilité | E3: id | F3: Fonction | H3: id | I3: Statuts | L3: Annee | M3: 3 | P3: Cot_soutien | Q3: Cot_GSB | R3: Cot_UFP38 | S3: Cot_Revue | T3: Cot_RC
B4: 1 | C4: Mr | E4: 0 | L4: 2021 | M4: 4 | N4: num_cot | O4: T_Classe | P4: t_cot_sout | Q4: T_Cot_GSB | R4: t_cot_UFP | S4: T_Cot_Revue | T4: T_Cot_RC | U4: t__t_cot
B5: 2 | C5: Mme | E5: 1 | F5: Adh | H5: 1 | I5: Indi | L5: 2020 | M5: 5 | N5: 1 | O5: 5 | P5: 0.00 € | Q5: 12.00 € | R5: 9.00 € | S5: 6.00 € | T5: 1.00 € | U5: 28
B6: 3 | C6: Melle | E6: 2 | F6: CA | H6: 2 | I6: AF | M6: 6 | N6: 2 | O6: 10 | P6: 0.00 € | Q6: 19.00 € | R6: 8.00 € | S6: 6.00 € | T6: 2.00 € | U6: 35
B7: 4 | C7: Melles | E7: 3 | F7: Bur | H7: 3 | I7: SCI | M7: 7 | N7: 3 | O7: 20 | P7: 0.00 € | Q7: 27.00 € | R7: 6.00 € | S7: 6.00 € | T7: 4.00 € | U7: 43
B8: 5 | C8: Mmes | E8: 4 | F8: Sout | H8: 4 | I8: GF | M8: 8 | N8: 4 | O8: 50 | P8: 0.00 € | Q8: 29.00 € | R8: 10.00 € | S8: 6.00 € | T8: 10.00 € | U8: 55
B9: 6 | C9: Mrs | H9: 5 | I9: ASL | M9: 9 | N9: 5 | O9: 75 | P9: 0.00 € | Q9: 29.00 € | R9: 35.00 € | S9: 6.00 € | T9: 15.00 € | U9: 85
B10: 7 | C10: Doct | M10: 10 | N10: 6 | O10: 100 | P10: 0.00 € | Q10: 29.00 € | R10: 55.00 € | S10: 6.00 € | T10: 20.00 € | U10: 110
B11: 8 | C11: Maître | M11: 11 | N11: 7 | O11: 150 | P11: 0.00 € | Q11: 29.00 € | R11: 70.00 € | S11: 6.00 € | T11: 30.00 € | U11: 135
B12: 9 | C12: Mr le Conte | M12: 12 | N12: 8 | O12: 200 | P12: 0.00 € | Q12: 29.00 € | R12: 110.00 € | S12: 6.00 € | T12: 40.00 € | U12: 185
B13: 10 | C13: - | N13: 9 | O13: 300 | P13: 0.00 € | Q13: 29.00 € | R13: 140.00 € | S13: 6.00 € | T13: 60.00 € | U13: 235
N14: 10 | O14: 400 | P14: 0.00 € | Q14: 29.00 € | R14: 220.00 € | S14: 6.00 € | T14: 80.00 € | U14: 335
B15: Suivi | E15: PEFC | N15: 11 | O15: 500 | P15: 0.00 € | Q15: 29.00 € | R15: 300.00 € | S15: 6.00 € | T15: 100.00 € | U15: 435
B16: Colonne1 | C16: Colonne2 | E16: Pefc | F16: oui | N16: 12 | O16: 500+ | P16: 0.00 € | Q16: 29.00 € | R16: 300.00 € | S16: 6.00 € | T16: 200.00 € | U16: 535
E17: Pefc | N17: 13 | O17: Sout | P17: 44.00 € | Q17: 0.00 € | R17: 0.00 € | S17: 6.00 € | T17: 0.00 € | U17: 50
B18: Changement adresse | C18: Chang adr
B19: Non cotisant n-1 | C19: Non n-1 | P19: Cot_soutien | Q19: cot_GSB | R19: Cot_UFP38 | S19: Cot_Revue | T19: Cot_RC
B20: Nouvel adhérent | C20: Nouveau | P20: =RECHERCHEV($S2;'Listes déroulantes'!$O$5:'Listes déroulantes'!$T$17;2) | U20: ,3 4, 5, 6
N21: =SI([@Fonction]="Sout";"Sout";SI(surf_fo<=50000;5;SI(surf_fo<=100000;10;SI(surf_fo<=200000;20;SI(surf_fo<=500000;50;SI(surf_fo<=750000;75;SI(surf_fo<=1000000;100;SI(surf_fo<=1500000;150;SI(surf_fo<=2000000;200;SI(surf_fo<=3000000;300;SI(surf_fo<=4000000;400;SI(surf_fo<=5000000;500;"+500"))))))))))))
N25: $S$2: | O25: Classe tarif "adherent"

Sheet Adherents
A1: id | B1: UFP38 | C1: Année | D1: Fonction | E1: Statut | F1: Denomination | G1: Civilité | H1: Suivi | I1: Choix Saisie Automatique Inutilissé Nom: | J1: Prenom | K1: Code Adherent | L1: Vérifier si Doublon | M1: N° de la voie | N1: Adresse | O1: Localisation | P1: Code_Postal | Q1: Villes² | R1: Departements | S1: INSEE | T1: Surface forêt | U1: Classe_tarif | V1: Cot_soutien | W1: Cot_GSB | X1: Cot_UFP38 | Y1: Cot_Revue | Z1: Cot_RC | AA1: Tot_Cot | AB1: Règlement | AC1: Ecart | AD1: Date Règlement | AE1: Tel 1 | AF1: Tel 2 | AG1: Mail 1 | AH1: Mail 2 | AI1: PEFC | AJ1: N° N-1 | AK1: Commentaires | AL1: N° id adresse | AM1: N° de la voie2
A2: 1 | B2: 40427 | C2: 2020 | D2: Sout | G2: Mr | H2: Chang adr | I2: Ferrier | J2: Etienne | K2: =CONCATENATE(LEFT(I2,2),LEFT(J2,2),S2,L2) -> FeEt38181+ | L2: + | N2: rue du docteurCharvet | O2: Les Vincents | P2: 38570 | Q2: GONCELIN | R2: =INDEX(Tab_Villes[],MATCH(S2,Tab_Villes[INSEE],0),MATCH(R$1,Tab_Villes[#Headers],0)) -> ISERE | S2: =INDEX(Tab_Villes[],MATCH(1,(Tab_Villes[Code_Postal]=P2)*(Tab_Villes[Villes]=Q2),0),4) -> 38181 | T2: 0/005 55 00 | U2: =IF(Adherents!$D2="Sout","Sout",IF(surfa_fo<=50000,5,IF(surfa_fo<=100000,10,IF(surfa_fo<=200000,20,IF(surfa_fo<=500000,50,IF(surfa_fo<=750000,75,IF(surfa_fo<=1000000,100,IF(surfa_fo<=1500000,150,IF(surfa_fo<=2000000,200,IF(surfa_fo<surf_fo=3000000,300,IF(surfa_fo<=4000000,400,IF(surfa_fo<=5000000,500,"500+")))))))))))) -> Sout | V2: =VLOOKUP($U2,'Listes déroulantes'!$O$5:'Listes déroulantes'!$T$17,2) -> 44.00 | W2: =VLOOKUP($U2,'Listes déroulantes'!$O$5:'Listes déroulantes'!$T$17,3) -> 0.00 | X2: =VLOOKUP($U2,'Listes déroulantes'!$O$5:'Listes déroulantes'!$T$17,4) -> 0.00 | Y2: =VLOOKUP($U2,'Listes déroulantes'!$O$5:'Listes déroulantes'!$T$17,5) -> 6.00 | Z2: =VLOOKUP($U2,'Listes déroulantes'!$O$5:'Listes déroulantes'!$T$17,6) -> 0.00 | AA2: =SUM(V2:Z2) -> 50.00 | AB2: 35.00 | AC2: =AB2-AA2 -> -15.00 | AD2: 2020-01-02 | AE2: 04 76 97 75 57 | AF2: 06 59 18 26 06 | AL2: =MATCH(1,(CP=P2)*(Villes=P2),0) -> 
R3: =INDEX(Tab_Villes[],MATCH(S3,Tab_Villes[INSEE],0),MATCH(R$1,Tab_Villes[#Headers],0)) ->  | S3: =INDEX(Tab_Villes[],MATCH(1,(Tab_Villes[Code_Postal]=P3)*(Tab_Villes[Villes]=Q3),0),4) ->  | U3: =IF(Adherents!$D3="Sout","Sout",IF(surfa_fo<=50000,5,IF(surfa_fo<=100000,10,IF(surfa_fo<=200000,20,IF(surfa_fo<=500000,50,IF(surfa_fo<=750000,75,IF(surfa_fo<=1000000,100,IF(surfa_fo<=1500000,150,IF(surfa_fo<=2000000,200,IF(surfa_fo<surf_fo=3000000,300,IF(surfa_fo<=4000000,400,IF(surfa_fo<=5000000,500,"500+")))))))))))) -> 5 | V3: =VLOOKUP($U3,'Listes déroulantes'!$O$5:'Listes déroulantes'!$T$17,2) -> 0.00
T4: =SUM(surfa_fo) -> 0/005 55 00 | V4: =SUM(V2:V3) -> 44.00 | W4: =SUM(W2:W2) -> 0.00 | X4: 0.00 | Y4: 6.00 | Z4: 0.00 | AA4: 50.00 | AB4: 35.00 | AC4: -15.00

Sheet Les noms

Sheet Villes
A1: Code_Postal | B1: Villes | C1: Departements | D1: INSEE | E1: Acienne dénomination | F1: Ancien INSEE
A2: 01000 | B2: BOURG-EN-BRESSE | C2: AIN | D2: 01053
A3: 01000 | B3: SAINT-DENIS-LES-BOURG | C3: AIN | D3: 01344
A4: 01090 | B4: FRANCHELEINS | C4: AIN | D4: 01165
A5: 01090 | B5: GENOUILLEUX | C5: AIN | D5: 01169
A6: 01090 | B6: GUEREINS | C6: AIN | D6: 01183
A7: 01090 | B7: LURCY | C7: AIN | D7: 01225
A8: 01090 | B8: MONTCEAUX | C8: AIN | D8: 01258
A9: 01090 | B9: MONTMERLE-SUR-SAONE | C9: AIN | D9: 01263
A10: 01100 | B10: APREMONT | C10: AIN | D10: 01011
A11: 01100 | B11: ARBENT | C11: AIN | D11: 01014
A12: 01100 | B12: BELLIGNAT | C12: AIN | D12: 01031
A13: 01100 | B13: GEOVREISSET | C13: AIN | D13: 01171
A14: 01100 | B14: GROISSIAT | C14: AIN | D14: 01181
A15: 01100 | B15: MARTIGNAT | C15: AIN | D15: 01237
A16: 01100 | B16: OYONNAX | C16: AIN | D16: 01283
A17: 01110 | B17: ARANC | C17: AIN | D17: 01012
A18: 01110 | B18: BRENOD | C18: AIN | D18: 01060
A19: 01110 | B19: CHAMPDOR | C19: AIN | D19: 01080
A20: 01110 | B20: CORCELLES | C20: AIN | D20: 01119
A21: 01110 | B21: CORLIER | C21: AIN | D21: 01121
A22: 01110 | B22: CORMARANCHE-EN-BUGEY | C22: AIN | D22: 01122
A23: 01110 | B23: HAUTEVILLE-LOMPNES | C23: AIN | D23: 01185
A24: 01110 | B24: HOSTIAZ | C24: AIN | D24: 01186
A25: 01110 | B25: PREMILLIEU | C25: AIN | D25: 01311
A26: 01110 | B26: THEZILLIEU | C26: AIN | D26: 01417
A27: 01120 | B27: DAGNEUX | C27: AIN | D27: 01142
A28: 01120 | B28: LA BOISSE | C28: AIN | D28: 01049
A29: 01120 | B29: MONTLUEL | C29: AIN | D29: 01262
A30: 01120 | B30: NIEVROZ | C30: AIN | D30: 01276
A31: 01120 | B31: PIZAY | C31: AIN | D31: 01297
A32: 01120 | B32: SAINTE-CROIX | C32: AIN | D32: 01342
A33: 01120 | B33: THIL | C33: AIN | D33: 01418
A34: 01130 | B34: BELLEYDOUX | C34: AIN | D34: 01035
A35: 01130 | B35: CHARIX | C35: AIN | D35: 01087
A36: 01130 | B36: ECHALLON | C36: AIN | D36: 01152
A37: 01130 | B37: GIRON | C37: AIN | D37: 01174
A38: 01130 | B38: LALLEYRIAT | C38: AIN | D38: 01204
A39: 01130 | B39: LE POIZAT | C39: AIN | D39: 01300
A40: 01130 | B40: LES NEYROLLES | C40: AIN | D40: 01274
A41: 01130 | B41: NANTUA | C41: AIN | D41: 01269
A42: 01130 | B42: PLAGNE | C42: AIN | D42: 01298
A43: 01130 | B43: SAINT-GERMAIN-DE-JOUX | C43: AIN | D43: 01357
A44: 01140 | B44: GARNERANS | C44: AIN | D44: 01167
A45: 01140 | B45: ILLIAT | C45: AIN | D45: 01188
A46: 01140 | B46: MOGNENEINS | C46: AIN | D46: 01252
A47: 01140 | B47: PEYZIEUX-SUR-SAONE | C47: AIN | D47: 01295
A48: 01140 | B48: SAINT-DIDIER-SUR-CHALARONNE | C48: AIN | D48: 01348
A49: 01140 | B49: SAINT-ETIENNE-SUR-CHALARONNE | C49: AIN | D49: 01351
A50: 01140 | B50: THOISSEY | C50: AIN | D50: 01420
A51: 01140 | B51: VALEINS | C51: AIN | D51: 01428
A52: 01150 | B52: BLYES | C52: AIN | D52: 01047
A53: 01150 | B53: CHAZEY-SUR-AIN | C53: AIN | D53: 01099
A54: 01150 | B54: LAGNIEU | C54: AIN | D54: 01202
A55: 01150 | B55: LEYMENT | C55: AIN | D55: 01213
A56: 01150 | B56: SAINTE-JULIE | C56: AIN | D56: 01366
A57: 01150 | B57: SAINT-SORLIN-EN-BUGEY | C57: AIN | D57: 01386
A58: 01150 | B58: SAINT-VULBAS | C58: AIN | D58: 01390
A59: 01150 | B59: SAULT-BRENAZ | C59: AIN | D59: 01396
A60: 01150 | B60: SOUCLIN | C60: AIN | D60: 01411
A61: 01150 | B61: VAUX-EN-BUGEY | C61: AIN | D61: 01431
A62: 01150 | B62: VILLEBOIS | C62: AIN | D62: 01444
A63: 01160 | B63: DRUILLAT | C63: AIN | D63: 01151
A64: 01160 | B64: LA TRANCLIERE | C64: AIN | D64: 01425
A65: 01160 | B65: NEUVILLE-SUR-AIN | C65: AIN | D65: 01273
A66: 01160 | B66: PONT-D'AIN | C66: AIN | D66: 01304
A67: 01160 | B67: PRIAY | C67: AIN | D67: 01314
A68: 01160 | B68: SAINT-MARTIN-DU-MONT | C68: AIN | D68: 01374
A69: 01160 | B69: VARAMBON | C69: AIN | D69: 01430
A70: 01170 | B70: CESSY | C70: AIN | D70: 01071
A71: 01170 | B71: CHEVRY | C71: AIN | D71: 01103
A72: 01170 | B72: CROZET | C72: AIN | D72: 01135
A73: 01170 | B73: ECHENEVEX | C73: AIN | D73: 01153
A74: 01170 | B74: GEX | C74: AIN | D74: 01173
A75: 01170 | B75: SEGNY | C75: AIN | D75: 01399
A76: 01170 | B76: VESANCY | C76: AIN | D76: 01436
A77: 01190 | B77: ARBIGNY | C77: AIN | D77: 01016
A78: 01190 | B78: BOISSEY | C78: AIN | D78: 01050
A79: 01190 | B79: BOZ | C79: AIN | D79: 01057
A80: 01190 | B80: CHAVANNES-SUR-REYSSOUZE | C80: AIN | D80: 01094
A81: 01190 | B81: CHEVROUX | C81: AIN | D81: 01102
A82: 01190 | B82: GORREVOD | C82: AIN | D82: 01175
A83: 01190 | B83: OZAN | C83: AIN | D83: 01284
A84: 01190 | B84: PONT-DE-VAUX | C84: AIN | D84: 01305
A85: 01190 | B85: REYSSOUZE | C85: AIN | D85: 01323
A86: 01190 | B86: SAINT-BENIGNE | C86: AIN | D86: 01337
A87: 01190 | B87: SAINT-ETIENNE-SUR-REYSSOUZE | C87: AIN | D87: 01352
A88: 01190 | B88: SERMOYER | C88: AIN | D88: 01402
A89: 01200 | B89: BELLEGARDE-SUR-VALSERINE | C89: AIN | D89: 01033
A90: 01200 | B90: BILLIAT | C90: AIN | D90: 01044
A91: 01200 | B91: CHATILLON-EN-MICHAILLE | C91: AIN | D91: 01091
A92: 01200 | B92: CONFORT | C92: AIN | D92: 01114
A93: 01200 | B93: ELOISE | C93: HAUTE-SAVOIE | D93: 74109
A94: 01200 | B94: INJOUX-GENISSIAT | C94: AIN | D94: 01189
A95: 01200 | B95: LANCRANS | C95: AIN | D95: 01205
A96: 01200 | B96: LEAZ | C96: AIN | D96: 01209
A97: 01200 | B97: MONTANGES | C97: AIN | D97: 01257
A98: 01200 | B98: VILLES | C98: AIN | D98: 01448
A99: 01210 | B99: FERNEY-VOLTAIRE | C99: AIN | D99: 01160
A100: 01210 | B100: ORNEX | C100: AIN | D100: 01281
A101: 01210 | B101: VERSONNEX | C101: AIN | D101: 01435
A102: 01220 | B102: DIVONNE-LES-BAINS | C102: AIN | D102: 01143
A103: 01220 | B103: GRILLY | C103: AIN | D103: 01180
A104: 01220 | B104: SAUVERNY | C104: AIN | D104: 01397
A105: 01230 | B105: ARANDAS | C105: AIN | D105: 01013
A106: 01230 | B106: ARGIS | C106: AIN | D106: 01017
A107: 01230 | B107: CHALEY | C107: AIN | D107: 01076
A108: 01230 | B108: CLEYZIEU | C108: AIN | D108: 01107
A109: 01230 | B109: CONAND | C109: AIN | D109: 01111
A110: 01230 | B110: EVOSGES | C110: AIN | D110: 01155
A111: 01230 | B111: NIVOLLET-MONTGRIFFON | C111: AIN | D111: 01277
A112: 01230 | B112: ONCIEU | C112: AIN | D112: 01279
A113: 01230 | B113: SAINT-RAMBERT-EN-BUGEY | C113: AIN | D113: 01384
A114: 01230 | B114: TENAY | C114: AIN | D114: 01416
A115: 01230 | B115: TORCIEU | C115: AIN | D115: 01421
A116: 01240 | B116: CERTINES | C116: AIN | D116: 01069
A117: 01240 | B117: DOMPIERRE-SUR-VEYLE | C117: AIN | D117: 01145
A118: 01240 | B118: LA CHAPELLE-DU-CHATELARD | C118: AIN | D118: 01085
A119: 01240 | B119: LENT | C119: AIN | D119: 01211
A120: 01240 | B120: MARLIEUX | C120: AIN | D120: 01235
A121: 01240 | B121: SAINT-ANDRE-LE-BOUCHOUX | C121: AIN | D121: 01335
A122: 01240 | B122: SAINT-GERMAIN-SUR-RENON | C122: AIN | D122: 01359
A123: 01240 | B123: SAINT-PAUL-DE-VARAX | C123: AIN | D123: 01383
A124: 01250 | B124: BOHAS-MEYRIAT-RIGNAT | C124: AIN | D124: 01245
A125: 01250 | B125: CEYZERIAT | C125: AIN | D125: 01072
A126: 01250 | B126: CHAVANNES-SUR-SURAN | C126: AIN | D126: 01095
A127: 01250 | B127: CIZE | C127: AIN | D127: 01106
A128: 01250 | B128: CORVEISSIAT | C128: AIN | D128: 01125
A129: 01250 | B129: DROM | C129: AIN | D129: 01150
A130: 01250 | B130: GERMAGNAT | C130: AIN | D130: 01172
A131: 01250 | B131: GRAND-CORENT | C131: AIN | D131: 01177
A132: 01250 | B132: HAUTECOURT-ROMANECHE | C132: AIN | D132: 01184
A133: 01250 | B133: JASSERON | C133: AIN | D133: 01195
A134: 01250 | B134: JOURNANS | C134: AIN | D134: 01197
A135: 01250 | B135: MONTAGNAT | C135: AIN | D135: 01254
A136: 01250 | B136: POUILLAT | C136: AIN | D136: 01309
A137: 01250 | B137: RAMASSE | C137: AIN | D137: 01317
A138: 01250 | B138: REVONNAS | C138: AIN | D138: 01321
A139: 01250 | B139: SAINT-JUST | C139: AIN | D139: 01369
A140: 01250 | B140: SIMANDRE-SUR-SURAN | C140: AIN | D140: 01408
A141: 01250 | B141: TOSSIAT | C141: AIN | D141: 01422
A142: 01250 | B142: VILLEREVERSURE | C142: AIN | D142: 01447
A143: 01260 | B143: BELMONT-LUTHEZIEU | C143: AIN | D143: 01036
A144: 01260 | B144: BRENAZ | C144: AIN | D144: 01059
A145: 01260 | B145: CHAMPAGNE-EN-VALROMEY | C145: AIN | D145: 01079
A146: 01260 | B146: HOTONNES | C146: AIN | D146: 01187
A147: 01260 | B147: LE GRAND-ABERGEMENT | C147: AIN | D147: 01176
A148: 01260 | B148: LE PETIT-ABERGEMENT | C148: AIN | D148: 01292
A149: 01260 | B149: LOCHIEU | C149: AIN | D149: 01218
A150: 01260 | B150: LOMPNIEU | C150: AIN | D150: 01221
A151: 01260 | B151: RUFFIEU | C151: AIN | D151: 01330
A152: 01260 | B152: SONGIEU | C152: AIN | D152: 01409
A153: 01260 | B153: SUTRIEU | C153: AIN | D153: 01414
A154: 01260 | B154: VIEU | C154: AIN | D154: 01442
A155: 01260 | B155: VIRIEU-LE-PETIT | C155: AIN | D155: 01453
A156: 01270 | B156: BEAUPONT | C156: AIN | D156: 01029
A157: 01270 | B157: COLIGNY | C157: AIN | D157: 01108
A158: 01270 | B158: DOMSURE | C158: AIN | D158: 01147
A159: 01270 | B159: PIRAJOUX | C159: AIN | D159: 01296
A160: 01270 | B160: SALAVRE | C160: AIN | D160: 01391
A161: 01270 | B161: VERJON | C161: AIN | D161: 01432
A162: 01270 | B162: VILLEMOTIER | C162: AIN | D162: 01445
A163: 01280 | B163: PREVESSIN-MOENS | C163: AIN | D163: 01313
A164: 01290 | B164: BEY | C164: AIN | D164: 01042
A165: 01290 | B165: BIZIAT | C165: AIN | D165: 01046
A166: 01290 | B166: CORMORANCHE-SUR-SAONE | C166: AIN | D166: 01123
A167: 01290 | B167: CROTTET | C167: AIN | D167: 01134
A168: 01290 | B168: CRUZILLES-LES-MEPILLAT | C168: AIN | D168: 01136
A169: 01290 | B169: GRIEGES | C169: AIN | D169: 01179
A170: 01290 | B170: LAIZ | C170: AIN | D170: 01203
A171: 01290 | B171: PONT-DE-VEYLE | C171: AIN | D171: 01306
A172: 01290 | B172: SAINT-ANDRE-D'HUIRIAT | C172: AIN | D172: 01334
A173: 01290 | B173: SAINT-JEAN-SUR-VEYLE | C173: AIN | D173: 01365
A174: 01300 | B174: AMBLEON | C174: AIN | D174: 01006
A175: 01300 | B175: ANDERT-ET-CONDON | C175: AIN | D175: 01009
A176: 01300 | B176: ARBIGNIEU | C176: AIN | D176: 01015
A177: 01300 | B177: BELLEY | C177: AIN | D177: 01034
A178: 01300 | B178: BREGNIER-CORDON | C178: AIN | D178: 01058
A179: 01300 | B179: BRENS | C179: AIN | D179: 01061
A180: 01300 | B180: CHAZEY-BONS | C180: AIN | D180: 01098
A181: 01300 | B181: COLOMIEU | C181: AIN | D181: 01110
A182: 01300 | B182: CONTREVOZ | C182: AIN | D182: 01116
A183: 01300 | B183: CONZIEU | C183: AIN | D183: 01117
A184: 01300 | B184: CUZIEU | C184: AIN | D184: 01141
A185: 01300 | B185: IZIEU | C185: AIN | D185: 01193
A186: 01300 | B186: MAGNIEU | C186: AIN | D186: 01227
A187: 01300 | B187: MARIGNIEU | C187: AIN | D187: 01234
A188: 01300 | B188: MASSIGNIEU-DE-RIVES | C188: AIN | D188: 01239
A189: 01300 | B189: MURS-ET-GELIGNIEUX | C189: AIN | D189: 01268
A190: 01300 | B190: NATTAGES | C190: AIN | D190: 01271
A191: 01300 | B191: PARVES | C191: AIN | D191: 01286
A192: 01300 | B192: PEYRIEU | C192: AIN | D192: 01294
A193: 01300 | B193: PREMEYZEL | C193: AIN | D193: 01310
A194: 01300 | B194: SAINT-BENOIT | C194: AIN | D194: 01338
A195: 01300 | B195: SAINT-BOIS | C195: AIN | D195: 01340
A196: 01300 | B196: SAINT-CHAMP | C196: AIN | D196: 01341
A197: 01300 | B197: SAINT-GERMAIN-LES-PAROISSES | C197: AIN | D197: 01358
A198: 01300 | B198: VIRIGNIN | C198: AIN | D198: 01454
A199: 01310 | B199: BUELLAS | C199: AIN | D199: 01065
A200: 01310 | B200: CONFRANCON | C200: AIN | D200: 01115
... 4300 more rows

Sheet Fonctions
C1: Cot_soutien | D1: Cot_GSB | E1: Cot_UFP38 | F1: Cot_Revue | G1: Cot_RC
A2: num_cot | B2: T_Classe | C2: t_cot_sout | D2: T_Cot_GSB | E2: t_cot_UFP | F2: T_Cot_Revue | G2: T_Cot_RC | H2: t__t_cot
A3: 1 | B3: 5 | C3: 0.00 € | D3: 12.00 € | E3: 9.00 € | F3: 6.00 € | G3: 1.00 € | H3: 28
A4: 2 | B4: 10 | C4: 0.00 € | D4: 19.00 € | E4: 8.00 € | F4: 6.00 € | G4: 2.00 € | H4: 35
A5: 3 | B5: 20 | C5: 0.00 € | D5: 27.00 € | E5: 6.00 € | F5: 6.00 € | G5: 4.00 € | H5: 43
A6: 4 | B6: 50 | C6: 0.00 € | D6: 29.00 € | E6: 10.00 € | F6: 6.00 € | G6: 10.00 € | H6: 55
A7: 5 | B7: 75 | C7: 0.00 € | D7: 29.00 € | E7: 35.00 € | F7: 6.00 € | G7: 15.00 € | H7: 85
A8: 6 | B8: 100 | C8: 0.00 € | D8: 29.00 € | E8: 55.00 € | F8: 6.00 € | G8: 20.00 € | H8: 110
A9: 7 | B9: 150 | C9: 0.00 € | D9: 29.00 € | E9: 70.00 € | F9: 6.00 € | G9: 30.00 € | H9: 135
A10: 8 | B10: 200 | C10: 0.00 € | D10: 29.00 € | E10: 110.00 € | F10: 6.00 € | G10: 40.00 € | H10: 185
A11: 9 | B11: 300 | C11: 0.00 € | D11: 29.00 € | E11: 140.00 € | F11: 6.00 € | G11: 60.00 € | H11: 235
A12: 10 | B12: 400 | C12: 0.00 € | D12: 29.00 € | E12: 220.00 € | F12: 6.00 € | G12: 80.00 € | H12: 335
A13: 11 | B13: 500 | C13: 0.00 € | D13: 29.00 € | E13: 300.00 € | F13: 6.00 € | G13: 100.00 € | H13: 435
A14: 12 | B14: 500+ | C14: 0.00 € | D14: 29.00 € | E14: 300.00 € | F14: 6.00 € | G14: 200.00 € | H14: 535
A15: 13 | B15: Sout | C15: 44.00 € | D15: 0.00 € | E15: 0.00 € | F15: 6.00 € | G15: 0.00 € | H15: 50
A16: =SI([@Fonction]="Sout";"Sout";SI(surf_fo<=50000;5;SI(surf_fo<=100000;10;SI(surf_fo<=200000;20;SI(surf_fo<=500000;50;SI(surf_fo<=750000;75;SI(surf_fo<=1000000;100;SI(surf_fo<=1500000;150;SI(surf_fo<=2000000;200;SI(surf_fo<=3000000;300;SI(surf_fo<=4000000;400;SI(surf_fo<=5000000;500;"+500"))))))))))))
A20: =SI([@Fonction]="Sout";"Sout";SI(surf_fo<=50000;5;SI(surf_fo<=100000;10;SI(surf_fo<=200000;20;SI(surf_fo<=500000;50;SI(surf_fo<=750000;75;SI(surf_fo<=1000000;100;SI(surf_fo<=1500000;150;SI(surf_fo<=2000000;200;SI(surf_fo<=3000000;300;SI(surf_fo<=4000000;400;SI(surf_fo<=5000000;500;"+500"))))))))))))

Sheet La foret
A1: Id | B1: Code adherent | C1: Nom | D1: Prénom | E1: Villes | F1: Code_Postal | G1: Commune | H1: Departements | I1: INSEE | J1: Section/parcelle | K1: N° de la parcelle | L1: Lieu-dit/ Adresse parcelle | M1: Contenance parcelle | N1: Classement PEFC de la parcelle | O1: N° id adresse | P1: kAdh
B2: FEAu38181 | C2: =INDEX(adherents[],Parcelle[[#This Row],[kAdh]],9) ->  | D2: =INDEX(adherents[],Parcelle[[#This Row],[kAdh]],10) ->  | E2: =INDEX(adherents[],Parcelle[[#This Row],[kAdh]],17) ->  | F2: 38570 | G2: GONCELIN | H2: =INDEX(Tab_Villes[],MATCH(I2,Tab_Villes[INSEE],0),MATCH(H$1,Tab_Villes[#Headers],0)) -> ISERE | I2: =INDEX(Tab_Villes[],MATCH(1,(Tab_Villes[Code_Postal]=F2)*(Tab_Villes[Villes]=G2),0),4) -> 38181 | J2: AE | K2: 1709 | L2: Routes et recourbes | M2: 0/005 55 55 | N2: oui | O2: =MATCH(1,(Tab_Villes[Code_Postal]=F2)*(Tab_Villes[Villes]=G2),0) -> 15103 | P2: =MATCH(Parcelle[[#This Row],[Code adherent]],adherents[Code Adherent],0) -> 
B3: FEAn38504 | C3: =INDEX(adherents[],Parcelle[[#This Row],[kAdh]],9) ->  | D3: =INDEX(adherents[],Parcelle[[#This Row],[kAdh]],10) ->  | E3: =INDEX(adherents[],Parcelle[[#This Row],[kAdh]],17) ->  | F3: 38570 | G3: GONCELIN | H3: =INDEX(Tab_Villes[],MATCH(I3,Tab_Villes[INSEE],0),MATCH(H$1,Tab_Villes[#Headers],0)) -> ISERE | I3: =INDEX(Tab_Villes[],MATCH(1,(Tab_Villes[Code_Postal]=F3)*(Tab_Villes[Villes]=G3),0),4) -> 38181 | O3: =MATCH(1,(Tab_Villes[Code_Postal]=F3)*(Tab_Villes[Villes]=G3),0) -> 15103 | P3: =MATCH(Parcelle[[#This Row],[Code adherent]],adherents[Code Adherent],0) -> 
B4: FEDo38504 | C4: =INDEX(adherents[],Parcelle[[#This Row],[kAdh]],9) ->  | D4: =INDEX(adherents[],Parcelle[[#This Row],[kAdh]],10) ->  | E4: =INDEX(adherents[],Parcelle[[#This Row],[kAdh]],17) ->  | H4: =INDEX(Tab_Villes[],MATCH(I4,Tab_Villes[INSEE],0),MATCH(H$1,Tab_Villes[#Headers],0)) ->  | I4: =INDEX(Tab_Villes[],MATCH(1,(Tab_Villes[Code_Postal]=F4)*(Tab_Villes[Villes]=G4),0),4) ->  | O4: =MATCH(1,(Tab_Villes[Code_Postal]=F4)*(Tab_Villes[Villes]=G4),0) ->  | P4: =MATCH(Parcelle[[#This Row],[Code adherent]],adherents[Code Adherent],0) -> 
B5: FEAu38181 | C5: =INDEX(adherents[],Parcelle[[#This Row],[kAdh]],9) ->  | D5: =INDEX(adherents[],Parcelle[[#This Row],[kAdh]],10) ->  | E5: =INDEX(adherents[],Parcelle[[#This Row],[kAdh]],17) ->  | H5: =INDEX(Tab_Villes[],MATCH(I5,Tab_Villes[INSEE],0),MATCH(H$1,Tab_Villes[#Headers],0)) ->  | I5: =INDEX(Tab_Villes[],MATCH(1,(Tab_Villes[Code_Postal]=F5)*(Tab_Villes[Villes]=G5),0),4) ->  | O5: =MATCH(1,(Tab_Villes[Code_Postal]=F5)*(Tab_Villes[Villes]=G5),0) ->  | P5: =MATCH(Parcelle[[#This Row],[Code adherent]],adherents[Code Adherent],0) -> 
B6: feau38181 | C6: =INDEX(adherents[],Parcelle[[#This Row],[kAdh]],9) ->  | D6: =INDEX(adherents[],Parcelle[[#This Row],[kAdh]],10) ->  | E6: =INDEX(adherents[],Parcelle[[#This Row],[kAdh]],17) ->  | H6: =INDEX(Tab_Villes[],MATCH(I6,Tab_Villes[INSEE],0),MATCH(H$1,Tab_Villes[#Headers],0)) ->  | I6: =INDEX(Tab_Villes[],MATCH(1,(Tab_Villes[Code_Postal]=F6)*(Tab_Villes[Villes]=G6),0),4) ->  | O6: =MATCH(1,(Tab_Villes[Code_Postal]=F6)*(Tab_Villes[Villes]=G6),0) ->  | P6: =MATCH(Parcelle[[#This Row],[Code adherent]],adherents[Code Adherent],0) -> 
B7: VAGu38185 | C7: =INDEX(adherents[],Parcelle[[#This Row],[kAdh]],9) ->  | D7: =INDEX(adherents[],Parcelle[[#This Row],[kAdh]],10) ->  | E7: =INDEX(adherents[],Parcelle[[#This Row],[kAdh]],17) ->  | H7: =INDEX(Tab_Villes[],MATCH(I7,Tab_Villes[INSEE],0),MATCH(H$1,Tab_Villes[#Headers],0)) ->  | I7: =INDEX(Tab_Villes[],MATCH(1,(Tab_Villes[Code_Postal]=F7)*(Tab_Villes[Villes]=G7),0),4) ->  | O7: =MATCH(1,(Tab_Villes[Code_Postal]=F7)*(Tab_Villes[Villes]=G7),0) ->  | P7: =MATCH(Parcelle[[#This Row],[Code adherent]],adherents[Code Adherent],0) -> 
B8: FEAu38181 | C8: =INDEX(adherents[],Parcelle[[#This Row],[kAdh]],9) ->  | D8: =INDEX(adherents[],Parcelle[[#This Row],[kAdh]],10) ->  | E8: =INDEX(adherents[],Parcelle[[#This Row],[kAdh]],17) ->  | H8: =INDEX(Tab_Villes[],MATCH(I8,Tab_Villes[INSEE],0),MATCH(H$1,Tab_Villes[#Headers],0)) ->  | I8: =INDEX(Tab_Villes[],MATCH(1,(Tab_Villes[Code_Postal]=F8)*(Tab_Villes[Villes]=G8),0),4) ->  | O8: =MATCH(1,(Tab_Villes[Code_Postal]=F8)*(Tab_Villes[Villes]=G8),0) ->  | P8: =MATCH(Parcelle[[#This Row],[Code adherent]],adherents[Code Adherent],0) -> 
B9: FEAn38504 | C9: =INDEX(adherents[],Parcelle[[#This Row],[kAdh]],9) ->  | D9: =INDEX(adherents[],Parcelle[[#This Row],[kAdh]],10) ->  | E9: =INDEX(adherents[],Parcelle[[#This Row],[kAdh]],17) ->  | H9: =INDEX(Tab_Villes[],MATCH(I9,Tab_Villes[INSEE],0),MATCH(H$1,Tab_Villes[#Headers],0)) ->  | I9: =INDEX(Tab_Villes[],MATCH(1,(Tab_Villes[Code_Postal]=F9)*(Tab_Villes[Villes]=G9),0),4) ->  | O9: =MATCH(1,(Tab_Villes[Code_Postal]=F9)*(Tab_Villes[Villes]=G9),0) ->  | P9: =MATCH(Parcelle[[#This Row],[Code adherent]],adherents[Code Adherent],0) -> 
B10: FEAn38504 | C10: =INDEX(adherents[],Parcelle[[#This Row],[kAdh]],9) ->  | D10: =INDEX(adherents[],Parcelle[[#This Row],[kAdh]],10) ->  | E10: =INDEX(adherents[],Parcelle[[#This Row],[kAdh]],17) ->  | H10: =INDEX(Tab_Villes[],MATCH(I10,Tab_Villes[INSEE],0),MATCH(H$1,Tab_Villes[#Headers],0)) ->  | I10: =INDEX(Tab_Villes[],MATCH(1,(Tab_Villes[Code_Postal]=F10)*(Tab_Villes[Villes]=G10),0),4) ->  | O10: =MATCH(1,(Tab_Villes[Code_Postal]=F10)*(Tab_Villes[Villes]=G10),0) ->  | P10: =MATCH(Parcelle[[#This Row],[Code adherent]],adherents[Code Adherent],0) -> 
B11: FEAu38181 | C11: =INDEX(adherents[],Parcelle[[#This Row],[kAdh]],9) ->  | D11: =INDEX(adherents[],Parcelle[[#This Row],[kAdh]],10) ->  | E11: =INDEX(adherents[],Parcelle[[#This Row],[kAdh]],17) ->  | H11: =INDEX(Tab_Villes[],MATCH(I11,Tab_Villes[INSEE],0),MATCH(H$1,Tab_Villes[#Headers],0)) ->  | I11: =INDEX(Tab_Villes[],MATCH(1,(Tab_Villes[Code_Postal]=F11)*(Tab_Villes[Villes]=G11),0),4) ->  | O11: =MATCH(1,(Tab_Villes[Code_Postal]=F11)*(Tab_Villes[Villes]=G11),0) ->  | P11: =MATCH(Parcelle[[#This Row],[Code adherent]],adherents[Code Adherent],0) -> 
B12: FEDo38504 | C12: =INDEX(adherents[],Parcelle[[#This Row],[kAdh]],9) ->  | D12: =INDEX(adherents[],Parcelle[[#This Row],[kAdh]],10) ->  | E12: =INDEX(adherents[],Parcelle[[#This Row],[kAdh]],17) ->  | H12: =INDEX(Tab_Villes[],MATCH(I12,Tab_Villes[INSEE],0),MATCH(H$1,Tab_Villes[#Headers],0)) ->  | I12: =INDEX(Tab_Villes[],MATCH(1,(Tab_Villes[Code_Postal]=F12)*(Tab_Villes[Villes]=G12),0),4) ->  | O12: =MATCH(1,(Tab_Villes[Code_Postal]=F12)*(Tab_Villes[Villes]=G12),0) ->  | P12: =MATCH(Parcelle[[#This Row],[Code adherent]],adherents[Code Adherent],0) -> 
B13: FEAn38006 | C13: =INDEX(adherents[],Parcelle[[#This Row],[kAdh]],9) ->  | D13: =INDEX(adherents[],Parcelle[[#This Row],[kAdh]],10) ->  | E13: =INDEX(adherents[],Parcelle[[#This Row],[kAdh]],17) ->  | H13: =INDEX(Tab_Villes[],MATCH(I13,Tab_Villes[INSEE],0),MATCH(H$1,Tab_Villes[#Headers],0)) ->  | I13: =INDEX(Tab_Villes[],MATCH(1,(Tab_Villes[Code_Postal]=F13)*(Tab_Villes[Villes]=G13),0),4) ->  | O13: =MATCH(1,(Tab_Villes[Code_Postal]=F13)*(Tab_Villes[Villes]=G13),0) ->  | P13: =MATCH(Parcelle[[#This Row],[Code adherent]],adherents[Code Adherent],0) -> 
C14: =INDEX(adherents[],Parcelle[[#This Row],[kAdh]],9) ->  | D14: =INDEX(adherents[],Parcelle[[#This Row],[kAdh]],10) ->  | E14: =INDEX(adherents[],Parcelle[[#This Row],[kAdh]],17) ->  | H14: =INDEX(Tab_Villes[],MATCH(I14,Tab_Villes[INSEE],0),MATCH(H$1,Tab_Villes[#Headers],0)) ->  | I14: =INDEX(Tab_Villes[],MATCH(1,(Tab_Villes[Code_Postal]=F14)*(Tab_Villes[Villes]=G14),0),4) ->  | O14: =MATCH(1,(Tab_Villes[Code_Postal]=F14)*(Tab_Villes[Villes]=G14),0) ->  | P14: =MATCH(Parcelle[[#This Row],[Code adherent]],adherents[Code Adherent],0) -> 
C15: =INDEX(adherents[],Parcelle[[#This Row],[kAdh]],9) ->  | D15: =INDEX(adherents[],Parcelle[[#This Row],[kAdh]],10) ->  | E15: =INDEX(adherents[],Parcelle[[#This Row],[kAdh]],17) ->  | H15: =INDEX(Tab_Villes[],MATCH(I15,Tab_Villes[INSEE],0),MATCH(H$1,Tab_Villes[#Headers],0)) ->  | I15: =INDEX(Tab_Villes[],MATCH(1,(Tab_Villes[Code_Postal]=F15)*(Tab_Villes[Villes]=G15),0),4) ->  | O15: =MATCH(1,(Tab_Villes[Code_Postal]=F15)*(Tab_Villes[Villes]=G15),0) ->  | P15: =MATCH(Parcelle[[#This Row],[Code adherent]],adherents[Code Adherent],0) -> 
C16: =INDEX(adherents[],Parcelle[[#This Row],[kAdh]],9) ->  | D16: =INDEX(adherents[],Parcelle[[#This Row],[kAdh]],10) ->  | E16: =INDEX(adherents[],Parcelle[[#This Row],[kAdh]],17) ->  | H16: =INDEX(Tab_Villes[],MATCH(I16,Tab_Villes[INSEE],0),MATCH(H$1,Tab_Villes[#Headers],0)) ->  | I16: =INDEX(Tab_Villes[],MATCH(1,(Tab_Villes[Code_Postal]=F16)*(Tab_Villes[Villes]=G16),0),4) ->  | O16: =MATCH(1,(Tab_Villes[Code_Postal]=F16)*(Tab_Villes[Villes]=G16),0) ->  | P16: =MATCH(Parcelle[[#This Row],[Code adherent]],adherents[Code Adherent],0) -> 
C17: =INDEX(adherents[],Parcelle[[#This Row],[kAdh]],9) ->  | D17: =INDEX(adherents[],Parcelle[[#This Row],[kAdh]],10) ->  | E17: =INDEX(adherents[],Parcelle[[#This Row],[kAdh]],17) ->  | H17: =INDEX(Tab_Villes[],MATCH(I17,Tab_Villes[INSEE],0),MATCH(H$1,Tab_Villes[#Headers],0)) ->  | I17: =INDEX(Tab_Villes[],MATCH(1,(Tab_Villes[Code_Postal]=F17)*(Tab_Villes[Villes]=G17),0),4) ->  | O17: =MATCH(1,(Tab_Villes[Code_Postal]=F17)*(Tab_Villes[Villes]=G17),0) ->  | P17: =MATCH(Parcelle[[#This Row],[Code adherent]],adherents[Code Adherent],0) -> 
C18: =INDEX(adherents[],Parcelle[[#This Row],[kAdh]],9) ->  | D18: =INDEX(adherents[],Parcelle[[#This Row],[kAdh]],10) ->  | E18: =INDEX(adherents[],Parcelle[[#This Row],[kAdh]],17) ->  | H18: =INDEX(Tab_Villes[],MATCH(I18,Tab_Villes[INSEE],0),MATCH(H$1,Tab_Villes[#Headers],0)) ->  | I18: =INDEX(Tab_Villes[],MATCH(1,(Tab_Villes[Code_Postal]=F18)*(Tab_Villes[Villes]=G18),0),4) ->  | O18: =MATCH(1,(Tab_Villes[Code_Postal]=F18)*(Tab_Villes[Villes]=G18),0) ->  | P18: =MATCH(Parcelle[[#This Row],[Code adherent]],adherents[Code Adherent],0) -> 
C19: =INDEX(adherents[],Parcelle[[#This Row],[kAdh]],9) ->  | D19: =INDEX(adherents[],Parcelle[[#This Row],[kAdh]],10) ->  | E19: =INDEX(adherents[],Parcelle[[#This Row],[kAdh]],17) ->  | H19: =INDEX(Tab_Villes[],MATCH(I19,Tab_Villes[INSEE],0),MATCH(H$1,Tab_Villes[#Headers],0)) ->  | I19: =INDEX(Tab_Villes[],MATCH(1,(Tab_Villes[Code_Postal]=F19)*(Tab_Villes[Villes]=G19),0),4) ->  | O19: =MATCH(1,(Tab_Villes[Code_Postal]=F19)*(Tab_Villes[Villes]=G19),0) ->  | P19: =MATCH(Parcelle[[#This Row],[Code adherent]],adherents[Code Adherent],0) -> 
C20: =INDEX(adherents[],Parcelle[[#This Row],[kAdh]],9) ->  | D20: =INDEX(adherents[],Parcelle[[#This Row],[kAdh]],10) ->  | E20: =INDEX(adherents[],Parcelle[[#This Row],[kAdh]],17) ->  | H20: =INDEX(Tab_Villes[],MATCH(I20,Tab_Villes[INSEE],0),MATCH(H$1,Tab_Villes[#Headers],0)) ->  | I20: =INDEX(Tab_Villes[],MATCH(1,(Tab_Villes[Code_Postal]=F20)*(Tab_Villes[Villes]=G20),0),4) ->  | O20: =MATCH(1,(Tab_Villes[Code_Postal]=F20)*(Tab_Villes[Villes]=G20),0) ->  | P20: =MATCH(Parcelle[[#This Row],[Code adherent]],adherents[Code Adherent],0) -> 
C21: =INDEX(adherents[],Parcelle[[#This Row],[kAdh]],9) ->  | D21: =INDEX(adherents[],Parcelle[[#This Row],[kAdh]],10) ->  | E21: =INDEX(adherents[],Parcelle[[#This Row],[kAdh]],17) ->  | H21: =INDEX(Tab_Villes[],MATCH(I21,Tab_Villes[INSEE],0),MATCH(H$1,Tab_Villes[#Headers],0)) ->  | I21: =INDEX(Tab_Villes[],MATCH(1,(Tab_Villes[Code_Postal]=F21)*(Tab_Villes[Villes]=G21),0),4) ->  | O21: =MATCH(1,(Tab_Villes[Code_Postal]=F21)*(Tab_Villes[Villes]=G21),0) ->  | P21: =MATCH(Parcelle[[#This Row],[Code adherent]],adherents[Code Adherent],0) -> 
C22: =INDEX(adherents[],Parcelle[[#This Row],[kAdh]],9) ->  | D22: =INDEX(adherents[],Parcelle[[#This Row],[kAdh]],10) ->  | E22: =INDEX(adherents[],Parcelle[[#This Row],[kAdh]],17) ->  | H22: =INDEX(Tab_Villes[],MATCH(I22,Tab_Villes[INSEE],0),MATCH(H$1,Tab_Villes[#Headers],0)) ->  | I22: =INDEX(Tab_Villes[],MATCH(1,(Tab_Villes[Code_Postal]=F22)*(Tab_Villes[Villes]=G22),0),4) ->  | O22: =MATCH(1,(Tab_Villes[Code_Postal]=F22)*(Tab_Villes[Villes]=G22),0) ->  | P22: =MATCH(Parcelle[[#This Row],[Code adherent]],adherents[Code Adherent],0) -> 
C23: =INDEX(adherents[],Parcelle[[#This Row],[kAdh]],9) ->  | D23: =INDEX(adherents[],Parcelle[[#This Row],[kAdh]],10) ->  | E23: =INDEX(adherents[],Parcelle[[#This Row],[kAdh]],17) ->  | H23: =INDEX(Tab_Villes[],MATCH(I23,Tab_Villes[INSEE],0),MATCH(H$1,Tab_Villes[#Headers],0)) ->  | I23: =INDEX(Tab_Villes[],MATCH(1,(Tab_Villes[Code_Postal]=F23)*(Tab_Villes[Villes]=G23),0),4) ->  | O23: =MATCH(1,(Tab_Villes[Code_Postal]=F23)*(Tab_Villes[Villes]=G23),0) ->  | P23: =MATCH(Parcelle[[#This Row],[Code adherent]],adherents[Code Adherent],0) -> 
C24: =INDEX(adherents[],Parcelle[[#This Row],[kAdh]],9) ->  | D24: =INDEX(adherents[],Parcelle[[#This Row],[kAdh]],10) ->  | E24: =INDEX(adherents[],Parcelle[[#This Row],[kAdh]],17) ->  | H24: =INDEX(Tab_Villes[],MATCH(I24,Tab_Villes[INSEE],0),MATCH(H$1,Tab_Villes[#Headers],0)) ->  | I24: =INDEX(Tab_Villes[],MATCH(1,(Tab_Villes[Code_Postal]=F24)*(Tab_Villes[Villes]=G24),0),4) ->  | O24: =MATCH(1,(Tab_Villes[Code_Postal]=F24)*(Tab_Villes[Villes]=G24),0) ->  | P24: =MATCH(Parcelle[[#This Row],[Code adherent]],adherents[Code Adherent],0) -> 
C25: =INDEX(adherents[],Parcelle[[#This Row],[kAdh]],9) ->  | D25: =INDEX(adherents[],Parcelle[[#This Row],[kAdh]],10) ->  | E25: =INDEX(adherents[],Parcelle[[#This Row],[kAdh]],17) ->  | H25: =INDEX(Tab_Villes[],MATCH(I25,Tab_Villes[INSEE],0),MATCH(H$1,Tab_Villes[#Headers],0)) ->  | I25: =INDEX(Tab_Villes[],MATCH(1,(Tab_Villes[Code_Postal]=F25)*(Tab_Villes[Villes]=G25),0),4) ->  | O25: =MATCH(1,(Tab_Villes[Code_Postal]=F25)*(Tab_Villes[Villes]=G25),0) ->  | P25: =MATCH(Parcelle[[#This Row],[Code adherent]],adherents[Code Adherent],0) -> 
C26: =INDEX(adherents[],Parcelle[[#This Row],[kAdh]],9) ->  | D26: =INDEX(adherents[],Parcelle[[#This Row],[kAdh]],10) ->  | E26: =INDEX(adherents[],Parcelle[[#This Row],[kAdh]],17) ->  | H26: =INDEX(Tab_Villes[],MATCH(I26,Tab_Villes[INSEE],0),MATCH(H$1,Tab_Villes[#Headers],0)) ->  | I26: =INDEX(Tab_Villes[],MATCH(1,(Tab_Villes[Code_Postal]=F26)*(Tab_Villes[Villes]=G26),0),4) ->  | O26: =MATCH(1,(Tab_Villes[Code_Postal]=F26)*(Tab_Villes[Villes]=G26),0) ->  | P26: =MATCH(Parcelle[[#This Row],[Code adherent]],adherents[Code Adherent],0) -> 
C27: =INDEX(adherents[],Parcelle[[#This Row],[kAdh]],9) ->  | D27: =INDEX(adherents[],Parcelle[[#This Row],[kAdh]],10) ->  | E27: =INDEX(adherents[],Parcelle[[#This Row],[kAdh]],17) ->  | H27: =INDEX(Tab_Villes[],MATCH(I27,Tab_Villes[INSEE],0),MATCH(H$1,Tab_Villes[#Headers],0)) ->  | I27: =INDEX(Tab_Villes[],MATCH(1,(Tab_Villes[Code_Postal]=F27)*(Tab_Villes[Villes]=G27),0),4) ->  | O27: =MATCH(1,(Tab_Villes[Code_Postal]=F27)*(Tab_Villes[Villes]=G27),0) ->  | P27: =MATCH(Parcelle[[#This Row],[Code adherent]],adherents[Code Adherent],0) -> 
C28: =INDEX(adherents[],Parcelle[[#This Row],[kAdh]],9) ->  | D28: =INDEX(adherents[],Parcelle[[#This Row],[kAdh]],10) ->  | E28: =INDEX(adherents[],Parcelle[[#This Row],[kAdh]],17) ->  | H28: =INDEX(Tab_Villes[],MATCH(I28,Tab_Villes[INSEE],0),MATCH(H$1,Tab_Villes[#Headers],0)) ->  | I28: =INDEX(Tab_Villes[],MATCH(1,(Tab_Villes[Code_Postal]=F28)*(Tab_Villes[Villes]=G28),0),4) ->  | O28: =MATCH(1,(Tab_Villes[Code_Postal]=F28)*(Tab_Villes[Villes]=G28),0) ->  | P28: =MATCH(Parcelle[[#This Row],[Code adherent]],adherents[Code Adherent],0) -> 
C29: =INDEX(adherents[],Parcelle[[#This Row],[kAdh]],9) ->  | D29: =INDEX(adherents[],Parcelle[[#This Row],[kAdh]],10) ->  | E29: =INDEX(adherents[],Parcelle[[#This Row],[kAdh]],17) ->  | H29: =INDEX(Tab_Villes[],MATCH(I29,Tab_Villes[INSEE],0),MATCH(H$1,Tab_Villes[#Headers],0)) ->  | I29: =INDEX(Tab_Villes[],MATCH(1,(Tab_Villes[Code_Postal]=F29)*(Tab_Villes[Villes]=G29),0),4) ->  | O29: =MATCH(1,(Tab_Villes[Code_Postal]=F29)*(Tab_Villes[Villes]=G29),0) ->  | P29: =MATCH(Parcelle[[#This Row],[Code adherent]],adherents[Code Adherent],0) -> 
C30: =INDEX(adherents[],Parcelle[[#This Row],[kAdh]],9) ->  | D30: =INDEX(adherents[],Parcelle[[#This Row],[kAdh]],10) ->  | E30: =INDEX(adherents[],Parcelle[[#This Row],[kAdh]],17) ->  | H30: =INDEX(Tab_Villes[],MATCH(I30,Tab_Villes[INSEE],0),MATCH(H$1,Tab_Villes[#Headers],0)) ->  | I30: =INDEX(Tab_Villes[],MATCH(1,(Tab_Villes[Code_Postal]=F30)*(Tab_Villes[Villes]=G30),0),4) ->  | M30: =SUM(M2:M29) -> 0/005 55 55 | O30: =MATCH(1,(Tab_Villes[Code_Postal]=F30)*(Tab_Villes[Villes]=G30),0) ->  | P30: =MATCH(Parcelle[[#This Row],[Code adherent]],adherents[Code Adherent],0) -> 
